[Event "Summer Prague Open-A 2022"]
[Site "Prague"]
[Date "2022.08.09"]
[Round "6.23"]
[White "Carnot, Luca"]
[Black "Prilleltensky, Matan"]
[Result "1/2-1/2"]
[ECO "A06"]
[WhiteElo "2035"]
[BlackElo "2191"]
[Annotator "RC"]
[PlyCount "44"]
[EventDate "2022.08.05"]
[EventType "swiss"]
[EventCountry "CZE"]
[SourceTitle "playchess.com"]
[Source "ChessBase"]
[SourceQuality "1"]
[TimeControl "40/5400+30:1800+30"]

1. Nf3 {[%emt 0:00:04]} d5 {[%emt 0:00:08]} 2. g3 {[%emt 0:00:02]} c6 {[%emt 0:00:10]} 3. Bg2 {[%emt 0:00:04]} Bg4 {[%emt 0:00:15]} 4. d4 {[%emt 0:02:09]} Nd7 {[%emt 0:00:43]} 5. Bf4 {[%emt 0:03:50]} e6 {[%emt 0:02:20]} 6. Nbd2 {[%emt 0:02:27]} Ngf6 {[%emt 0:02:15]} 7. h3 {[%emt 0:02:40]} Bh5 {[%emt 0:01:25]} 8. c4 {[%emt 0:02:13]} Be7 {[%emt 0:02:57]} 9. O-O {[%emt 0:03:11]} O-O {[%emt 0:01:00]} 10. Re1 {[%emt 0:05:03]} Bg6 {[%emt 0:05:33]} 11. Qb3 {[%emt 0:10:57]} Qc8 {[%emt 0:03:50]} 12. Rac1 {[%emt 0:04:47]} Ne4 {[%emt 0:04:08]} 13. Nh2 {[%emt 0:03:59]} Ndf6 {[%emt 0:08:57]} 14. Nhf1 {[%emt 0:02:26]} a5 {[%emt 0:03:19]} 15. a4 {[%emt 0:14:08]} Bb4 {[%emt 0:01:27]} 16. f3 {[%emt 0:01:13]} Nxd2 {[%emt 0:09:58]} 17. Bxd2 {[%emt 0:00:04]} Bxd2 {[%emt 0:01:14]} 18. Nxd2 {[%emt 0:00:02]} Qc7 {[%emt 0:04:11]} 19. f4 {[%emt 0:06:00]} Rad8 {[%emt 0:00:58]} 20. e3 {[%emt 0:04:30]} Rfe8 {[%emt 0:01:33]} 21. Rf1 {[%emt 0:01:00]} Qd7 {[%emt 0:04:11]} 22. Qc3 {[%emt 0:02:40]} Ra8 {[%emt 0:02:27]} 1/2-1/2

[Event "Summer Prague Open-A 2022"]
[Site "Prague"]
[Date "2022.08.09"]
[Round "6.24"]
[White "Brylski, Pawel"]
[Black "Schimnatkowski, Lukas"]
[Result "1/2-1/2"]
[ECO "B71"]
[WhiteElo "1914"]
[BlackElo "2189"]
[Annotator "RC"]
[PlyCount "44"]
[EventDate "2022.08.05"]
[EventType "swiss"]
[EventCountry "CZE"]
[SourceTitle "playchess.com"]
[Source "ChessBase"]
[SourceQuality "1"]
[TimeControl "40/5400+30:1800+30"]

1. e4 {[%emt 0:00:03]} c5 {[%emt 0:00:13]} 2. Nf3 {[%emt 0:00:49]} d6 {[%emt 0:00:08]} 3. d4 {[%emt 0:00:04]} cxd4 {[%emt 0:00:04]} 4. Nxd4 {[%emt 0:00:03]} Nf6 {[%emt 0:00:08]} 5. Nc3 {[%emt 0:00:07]} g6 {[%emt 0:00:06]} 6. f4 {[%emt 0:01:41]} Nc6 {[%emt 0:06:12]} 7. Nxc6 {[%emt 0:02:16]} bxc6 {[%emt 0:00:10]} 8. e5 {[%emt 0:00:18]} dxe5 {[%emt 0:03:47]} 9. Qxd8+ {[%emt 0:00:46]} Kxd8 {[%emt 0:00:05]} 10. fxe5 {[%emt 0:00:32]} Nd5 {[%emt 0:11:00]} 11. Bc4 {[%emt 0:24:44]} Be6 {[%emt 0:21:49]} 12. Ne2 {[%emt 0:13:31]} Bg7 {[%emt 0:05:41]} 13. Nd4 {[%emt 0:04:39]} Kd7 {[%emt 0:10:23]} 14. Nf3 {[%emt 0:02:03]} Nb4 {[%emt 0:12:14]} 15. Bxe6+ {[%emt 0:08:58]} Kxe6 {[%emt 0:00:24]} 16. Ng5+ {[%emt 0:00:13]} Kd5 {[%emt 0:02:10]} 17. Kd1 {[%emt 0:13:27]} Bxe5 {[%emt 0:04:55]} 18. a3 {[%emt 0:00:47]} Na6 {[%emt 0:00:54]} 19. Nxf7 {[%emt 0:00:20]} Rhf8 {[%emt 0:00:22]} 20. Nxe5 {[%emt 0:04:17]} Kxe5 {[%emt 0:00:11]} 21. Re1+ {[%emt 0:00:12]} Kd6 {[%emt 0:02:41]} 22. Be3 {[%emt 0:02:09]} Nc7 {[%emt 0:06:11]} 1/2-1/2

[Event "Summer Prague Open-A 2022"]
[Site "Prague"]
[Date "2022.08.10"]
[Round "7.1"]
[White "Mirzoev, Azer"]
[Black "Roubalik, Jakub"]
[Result "1/2-1/2"]
[ECO "A46"]
[WhiteElo "2424"]
[BlackElo "2380"]
[Annotator "TA"]
[PlyCount "79"]
[EventDate "2022.08.05"]
[EventType "swiss"]
[EventCountry "CZE"]
[SourceTitle "playchess.com"]
[Source "ChessBase"]
[SourceQuality "1"]
[TimeControl "40/5400+30:1800+30"]

{[%evp 15,79,-20,-4,-12,3,0,12,-9,18,7,54,38,77,7,19,0,14,-6,-4,-40,-36,-29,-10,-33,2,13,6,7,23,10,11,9,16,9,29,0,0,0,5,0,0,0,0,0,0,0,0,0,0,0,4,4,4,4,4,1,39,-2,-5,-17,-17,-17,0,0,0,0]} 1. d4 {[%emt 0:00:54]} Nf6 {[%emt 0:00:14]} 2. Nf3 {[%emt 0:00:07]} e6 {[%emt 0:00:12]} 3. c4 {[%emt 0:00:02]} d5 {[%emt 0:00:18]} 4. g3 {[%emt 0:00:06]} dxc4 {[%emt 0:00:19]} 5. Qa4+ {[%emt 0:00:18]} Nbd7 {[%emt 0:00:27]} 6. Bg2 {[%emt 0:00:16]} a6 {[%emt 0:00:43]} 7. Qxc4 {[%emt 0:00:24]} b5 {[%emt 0:00:19]} 8. Qc6 {[%emt 0:00:20]} Ra7 {[%emt 0:00:11]} ({But not} 8... Bb4+ 9. Bd2 Bxd2+ 10. Nbxd2 $16) 9. Be3 {[%emt 0:04:06] E03: Open Catalan: 5 Qa4+ Nbd7 6 Qxc4.} Bb7 {[%emt 0:16:23]} 10. Qc1 {[%emt 0:01:17]} Nd5 {[%emt 0:01:31][%cal Oc7c5]} 11. Bg5 {[%emt 0:01:31] [#]} f6 $146 {[%emt 0:11:50]} ({Predecessor:} 11... Qa8 12. Nc3 c5 13. dxc5 Bxc5 14. O-O O-O 15. Nxd5 Bxd5 16. Be3 Rc8 17. Qd2 Bxe3 18. Qxe3 {0-1 (50) Grabarczyk,M (2469)-Yakovich,Y (2569) Brescia 2009}) 12. Bd2 {[%emt 0:01:57]} c5 {[%emt 0:00:41]} (12... Bd6 $11) 13. O-O $1 $14 {[%emt 0:04:56]} Qb6 {[%emt 0:06:47]} 14. dxc5 {[%emt 0:16:14]} (14. e4 $16 Nb4 15. Bxb4 cxb4 16. Qe3 (16. Nbd2 g6 $11)) 14... Bxc5 $11 {[%emt 0:03:08]} 15. a3 {[%emt 0:02:02] [#] Threatens to win with e4.} a5 {[%emt 0:04:07]} 16. Nc3 {[%emt 0:16:15]} O-O {[%emt 0:08:37]} 17. Ne4 {[%emt 0:06:20]} Be7 $1 {[%emt 0:01:23]} 18. Qb1 {[%emt 0:03:30]} Raa8 {[%emt 0:05:35]} 19. Rd1 {[%emt 0:04:26][%cal Od2e3]} Nc5 {[%emt 0:04:21]} 20. Nxc5 {[%emt 0:00:15]} Bxc5 {[%emt 0:00:11]} 21. Be1 {[%emt 0:01:36]} b4 {[%emt 0:02:57]} 22. axb4 {[%emt 0:00:55]} axb4 {[%emt 0:05:44]} (22... Nxb4 {looks sharper.} 23. Nd2 Bxg2 24. Kxg2 Rfc8) 23. Rxa8 {[%emt 0:00:08]} Rxa8 {[%emt 0:00:08]} 24. Nd2 {[%emt 0:01:15]} Qb5 {[%emt 0:08:26]} 25. Bf3 {[%emt 0:06:56]} Be7 {[%emt 0:09:13]} 26. Nb3 {[%emt 0:02:08]} Qb6 {[%emt 0:02:44]} 27. Bd2 {[%emt 0:04:56]} f5 {[%emt 0:01:37]} 28. Rc1 {[%emt 0:03:13]} Rd8 {[%emt 0:01:21]} 29. Be1 {[%emt 0:03:49]} h6 {[%emt 0:01:52]} 30. Qc2 {[%emt 0:03:53]} Rc8 {[%emt 0:00:45]} 31. Qd1 {[%emt 0:01:16]} Rxc1 {[%emt 0:00:47]} 32. Qxc1 {[%emt 0:00:22]} Nf6 {[%emt 0:01:20]} 33. Bxb7 {[%emt 0:02:12]} Qxb7 {[%emt 0:00:01]} 34. Nd4 {[%emt 0:00:33]} Qe4 {[%emt 0:00:32]} 35. Qc4 {[%emt 0:03:44][%csl LRb4,LRe6]} Nd5 {[%emt 0:00:02]} (35... Kh7 $5 {[%cal Re6e5]} 36. Qxe6 Qxd4 37. Qxe7 Qxb2 38. Qxb4 Qxe2 $11) 36. e3 {[%emt 0:02:50]} Kf7 {[%emt 0:00:57] The position is equal.} 37. Qc2 {[%emt 0:00:42]} Qxc2 {[%emt 0:00:38]} 38. Nxc2 {[%emt 0:00:01]} Bf6 {[%emt 0:02:05]} 39. Nxb4 {[%emt 0:01:06]} Nxb4 {[%emt 0:00:07]} 40. Bxb4 {[%emt 0:00:03] Weighted Error Value: White=0.09 (flawless) /Black=0.10 (very precise)} 1/2-1/2

[Event "Summer Prague Open-A 2022"]
[Site "Prague"]
[Date "2022.08.10"]
[Round "7.2"]
[White "Ranaldi, Lucas"]
[Black "Cernousek, Lukas"]
[Result "0-1"]
[ECO "A30"]
[WhiteElo "2339"]
[BlackElo "2429"]
[Annotator "TA"]
[PlyCount "108"]
[EventDate "2022.08.05"]
[EventType "swiss"]
[EventCountry "CZE"]
[SourceTitle "playchess.com"]
[Source "ChessBase"]
[SourceQuality "1"]
[TimeControl "40/5400+30:1800+30"]

{[%evp 27,108,0,0,-6,-13,-15,0,0,0,0,8,8,8,8,15,17,12,16,14,0,0,0,0,0,0,0,0,0,0,0,0,0,0,0,0,0,0,0,0,0,0,0,0,0,0,-82,-82,-300,-289,-29990,-29967,-29967,-29968,-29967,-29969,-29968,-29967,-29966,-5669,-29968,-29970,-29970,-1157,-820,0,-29969,-29970,-29970,-29972,-29975,-29976,-29976,-29975,-29975,-29976,-29978,-29976,-29978,-29976,-29973,-29974,-29991,-992]} 1. c4 {[%emt 0:01:22]} c5 {[%emt 0:00:25]} 2. Nf3 {[%emt 0:00:12]} Nc6 {[%emt 0:00:06]} 3. Nc3 {[%emt 0:00:40]} e5 {[%emt 0:00:06]} 4. g3 {[%emt 0:00:42]} g6 {[%emt 0:00:08]} 5. Bg2 {[%emt 0:00:07]} Bg7 {[%emt 0:00:04]} 6. O-O {[%emt 0:00:26]} d6 {[%emt 0:00:05]} 7. d3 {[%emt 0:03:19]} Nge7 {[%emt 0:00:07]} 8. Bd2 {[%emt 0:00:58]} O-O {[%emt 0:00:54]} 9. a3 {[%emt 0:01:17]} a5 {[%emt 0:11:19]} 10. Rb1 {[%emt 0:05:45]} Rb8 {[%emt 0:01:51]} 11. Ne1 {[%emt 0:12:31]} Be6 {[%emt 0:00:07]} 12. Nc2 {[%emt 0:01:52]} d5 {[%emt 0:00:30]} 13. cxd5 {[%emt 0:00:54]} Nxd5 {[%emt 0:00:02]} 14. Nxd5 {[%emt 0:01:53]} Bxd5 {[%emt 0:00:03]} 15. b4 {[%emt 0:05:43] A37: Symmetrical English vs ...g6: 4 Bg2 Bg7 5 Nf3.} Bxg2 {[%emt 0:17:05]} 16. Kxg2 {[%emt 0:00:09]} Qd5+ {[%emt 0:00:13]} 17. Kg1 {[%emt 0:10:10] The position is equal.} axb4 {[%emt 0:13:14]} 18. axb4 {[%emt 0:00:13]} cxb4 {[%emt 0:00:05]} 19. Nxb4 {[%emt 0:00:35]} Nxb4 {[%emt 0:00:07]} 20. Rxb4 {[%emt 0:00:54]} Rfc8 {[%emt 0:12:11]} 21. Qb3 {[%emt 0:04:35]} Qxb3 {[%emt 0:10:05]} 22. Rxb3 {[%emt 0:00:08]} Rc2 {[%emt 0:02:48]} 23. Be3 {[%emt 0:02:34]} Rxe2 {[%emt 0:10:00] [#]} 24. Rc1 $146 {[%emt 0:02:40][%cal Ob3b7]} ({Predecessor:} 24. Rfb1 h5 25. Rxb7 Rxb7 26. Rxb7 {½-½ (25) Paunovic,D (2520)-Cuenca Jimenez,J (2474) Roquetas de Mar 2012}) 24... Bf8 {[%emt 0:01:55]} 25. Ba7 {[%emt 0:03:12]} Re8 {[%emt 0:03:35]} 26. Rc7 {[%emt 0:09:50]} b5 {[%emt 0:00:12]} 27. Rxb5 {[%emt 0:02:28]} Re7 {[%emt 0:02:11]} 28. Rxe7 {[%emt 0:00:41]} Bxe7 $11 {[%emt 0:00:49][%mdl 4096] Endgame KRB-KRB} 29. Be3 {[%emt 0:01:24]} f6 {[%emt 0:03:41]} 30. Bh6 {[%emt 0:15:38]} g5 {[%emt 0:05:41]} 31. h4 {[%emt 0:00:17]} gxh4 {[%emt 0:02:01]} 32. gxh4 {[%emt 0:00:35]} Rc2 {[%emt 0:02:43]} 33. Rb8+ {[%emt 0:08:07]} Kf7 {[%emt 0:00:00]} 34. h5 {[%emt 0:02:39]} Bc5 {[%emt 0:01:19]} 35. Rb7+ {[%emt 0:00:05]} Ke6 {[%emt 0:00:14]} 36. Rxh7 {[%emt 0:00:28]} (36. Be3 $1 $11) 36... Rxf2 $17 {[%emt 0:00:20] ...Rf5+ is the strong threat. Black continues to play with concentration.} 37. Bg7 $2 {[%emt 0:02:00]} (37. Bf8 $17 {might work better.} Bd4 38. Re7+ Kf5 39. h6) 37... Kf5 $19 {[%emt 0:00:59]} 38. Rh6 $2 {[%emt 0:01:39] [#]} (38. Bf8 $19 Be3 39. Rg7) 38... Rf4+ {[%emt 0:01:06]} 39. Kh2 {[%emt 0:00:20]} Rh4+ {[%emt 0:00:08]} 40. Kg3 {[%emt 0:00:13]} Rg4+ {[%emt 0:00:06]} 41. Kf3 {[%emt 0:30:41]} Rxg7 {[%emt 0:30:28] KRB-KR} 42. Rh8 {[%emt 0:00:07]} Rd7 {[%emt 0:00:00]} (42... Bd4 $142 43. h6 Rd7 44. Kg3 Kg6 45. Rf8 Bc5 46. Rg8+ Kxh6 47. Kf3 Rxd3+ 48. Ke4 Re3+ 49. Kf5 Rf3+ 50. Ke6 Bd4 51. Rf8 Kg5 52. Rf7 f5 53. Rg7+ Kf4 54. Rb7 Ke4 55. Rb1 f4 56. Kf6 Rc3 57. Rh1 f3 58. Re1+ Kd3 59. Kg5 f2 60. Rb1 Be3+ 61. Kf6 Bc1 62. Ke6 f1=Q 63. Rb8 Rc6+ 64. Kd7 Qf6 65. Rb3+ Kc4 66. Rc3+ Kxc3 67. Ke8 Qe6+ 68. Kf8 Bh6#) 43. Ke2 {[%emt 0:00:00]} Bd4 {[%emt 0:00:00]} 44. Kf3 {[%emt 0:00:00]} Kg5 {[%emt 0:00:00]} (44... Rf7 $142 45. Kg3 Kg5 46. h6 Kg6 47. Rg8+ Kxh6 48. Kh4 f5 49. Rh8+ Kg7 50. Rc8 f4 51. Rc1 Kg6 52. Kg4 f3 53. Kh3 Kg5 54. Kg3 f2 55. Rf1 Be3 56. Kg2 Kf4 57. Rxf2+ Bxf2 58. Kxf2 Rg7 59. d4 exd4 60. Ke2 Ke4 61. Kd2 Rg2+ 62. Kd1 Ke3 63. Kc1 d3 64. Kb1 Rc2 65. Ka1 d2 66. Kb1 d1=Q#) 45. Rg8+ {[%emt 0:00:00]} Kf5 {[%emt 0:00:00]} 46. Rh8 {[%emt 0:00:00] Prevents Rh7.} Ra7 {[%emt 0:00:00] Black mates.} 47. h6 {[%emt 0:00:00]} Kg6 {[%emt 0:00:00]} 48. Ke4 {[%emt 0:00:00]} f5+ {[%emt 0:00:00]} 49. Kd5 {[%emt 0:00:00]} Rh7 {[%emt 0:00:00]} 50. Rg8+ {[%emt 0:00:00]} Kf7 {[%emt 0:00:00]} 51. Rg5 {[%emt 0:00:00]} Kf6 {[%emt 0:00:00]} 52. Rg8 {[%emt 0:00:00]} Rxh6 {[%emt 0:00:00]} 53. Rf8+ {[%emt 0:00:00]} Kg5 {[%emt 0:00:00]} 54. Rxf5+ {[%emt 0:00:00]} Kxf5 {[%emt 0:00:00] Weighted Error Value: White=0.53/Black=0.75} 0-1

[Event "Summer Prague Open-A 2022"]
[Site "Prague"]
[Date "2022.08.10"]
[Round "7.3"]
[White "Lutsko, Artem"]
[Black "Kulhanek, Tomas"]
[Result "1-0"]
[ECO "E11"]
[WhiteElo "2392"]
[BlackElo "2319"]
[Annotator "TA"]
[PlyCount "71"]
[EventDate "2022.08.05"]
[EventType "swiss"]
[EventCountry "CZE"]
[SourceTitle "playchess.com"]
[Source "ChessBase"]
[SourceQuality "1"]
[TimeControl "40/5400+30:1800+30"]

{[%evp 13,71,34,29,20,12,17,29,16,20,15,23,8,43,29,77,78,79,14,20,14,63,62,52,64,90,41,43,42,51,39,57,57,51,34,25,32,41,14,76,52,176,194,416,425,442,432,1295,1252,1302,1288,1228,1199,1564,1348,29988,29989,29989,878,29976,29977]} 1. d4 {[%emt 0:00:02]} Nf6 {[%emt 0:02:18]} 2. c4 {[%emt 0:00:04]} e6 {[%emt 0:00:10]} 3. Nf3 {[%emt 0:00:04]} Bb4+ {[%emt 0:01:02]} 4. Bd2 {[%emt 0:00:04]} a5 {[%emt 0:00:25]} 5. g3 {[%emt 0:07:30]} d6 {[%emt 0:01:52]} 6. Bg2 {[%emt 0:00:32]} Nbd7 {[%emt 0:00:24]} 7. O-O {[%emt 0:00:53]} e5 {[%emt 0:00:10]} 8. Bc1 {[%emt 0:19:07] [#] Strongly threatening a3. E11: Bogo-Indian.} exd4 {[%emt 0:00:28]} 9. Nxd4 {[%emt 0:00:04]} O-O {[%emt 0:01:00]} 10. Nc2 {[%emt 0:00:03] White has an edge.} Bc5 {[%emt 0:01:15]} 11. Nc3 {[%emt 0:00:03]} Re8 {[%emt 0:03:22]} 12. b3 {[%emt 0:02:54]} Ne5 {[%emt 0:09:31] [#]} 13. Be3 $146 {[%emt 0:01:35]} ({Predecessor:} 13. h3 c6 14. Be3 Qc7 15. Qd2 Bf5 16. Bxc5 dxc5 17. Ne3 Rad8 18. Qb2 Bc8 19. Rad1 {0-1 (41) Rustemov,A (2525)-Noboa Silva,K (2331) Chess.com INT 2021}) 13... Qe7 {[%emt 0:06:08]} (13... Nfd7 $11) 14. Bxc5 $16 {[%emt 0:18:25]} dxc5 {[%emt 0:01:37]} 15. Nd5 {[%emt 0:00:05]} (15. e4 $16) 15... Nxd5 $11 {[%emt 0:03:13]} 16. cxd5 {[%emt 0:00:05]} Bd7 {[%emt 0:12:51]} (16... f5 $11 {feels stronger.}) 17. f4 $14 {[%emt 0:04:13]} Ng4 {[%emt 0:05:52]} 18. e4 {[%emt 0:00:05] Prevents Bf5.} f6 {[%emt 0:00:31]} 19. Qd2 {[%emt 0:06:47]} ({Better is} 19. a4 $16) 19... a4 {[%emt 0:02:17]} 20. Qc3 {[%emt 0:00:46]} c6 {[%emt 0:04:54]} 21. h3 {[%emt 0:00:35]} Nh6 {[%emt 0:00:02]} 22. Ne3 {[%emt 0:00:05]} Nf7 {[%emt 0:01:19]} 23. Rae1 {[%emt 0:14:25]} axb3 {[%emt 0:02:11]} 24. axb3 {[%emt 0:00:06]} Ra2 {[%emt 0:03:57]} 25. g4 {[%emt 0:11:05]} Nd6 {[%emt 0:07:31]} (25... cxd5 $11 {remains equal.} 26. exd5 (26. Nxd5 Qd6 $11) 26... Bb5) 26. Qd3 {[%emt 0:06:26][%cal Oe4e5] aiming for e5!} Kh8 {[%emt 0:09:18] [#] Black cannot hold the game after this.} (26... Nf7 $14) 27. e5 $1 $18 {[%emt 0:01:36]} fxe5 $2 {[%emt 0:11:03]} (27... Nb5) 28. fxe5 {[%emt 0:00:03]} Nb5 {[%emt 0:02:24]} (28... Qxe5 $2 29. Nc2 Ne4 30. Rxe4) 29. e6 {[%emt 0:00:44]} Bc8 {[%emt 0:00:22]} (29... Bxe6 $142 30. dxe6 Qxe6) 30. Rf7 {[%emt 0:00:43]} Qh4 {[%emt 0:00:53]} 31. Ref1 {[%emt 0:00:33] White threatens Rf8+ and mate.} Rg8 {[%emt 0:00:44]} 32. Rf8 {[%emt 0:03:25]} Nd4 {[%emt 0:00:56]} 33. Nf5 {[%emt 0:00:16]} Nxf5 {[%emt 0:00:59]} 34. Qxf5 {[%emt 0:00:06]} Qe7 {[%emt 0:01:05]} 35. Rxg8+ {[%emt 0:00:04]} Kxg8 {[%emt 0:00:04]} 36. d6 {[%emt 0:00:07] Weighted Error Value: White=0.16 (very precise) /Black=0.43} 1-0

[Event "Summer Prague Open-A 2022"]
[Site "Prague"]
[Date "2022.08.10"]
[Round "7.4"]
[White "Risting, Eivind Olav"]
[Black "Zamengo, Fulvio"]
[Result "0-1"]
[ECO "D20"]
[WhiteElo "2325"]
[BlackElo "2396"]
[Annotator "TA"]
[PlyCount "78"]
[EventDate "2022.08.05"]
[EventType "swiss"]
[EventCountry "CZE"]
[SourceTitle "playchess.com"]
[Source "ChessBase"]
[SourceQuality "1"]
[TimeControl "40/5400+30:1800+30"]

{[%evp 16,78,2,-3,-2,2,33,31,29,33,68,0,12,0,41,53,46,21,19,0,0,0,0,0,0,0,0,0,11,2,4,0,51,22,54,-4,-8,-4,0,-57,-59,-61,-66,-168,-168,-161,-158,-162,-162,-229,-222,-222,-166,-213,-218,-259,-269,-264,-255,-429,-409,-410,-424,-464,-439]} 1. d4 {[%emt 0:00:05]} d5 {[%emt 0:00:33]} 2. c4 {[%emt 0:00:25]} dxc4 {[%emt 0:00:23]} 3. e4 {[%emt 0:00:57]} b5 {[%emt 0:00:38]} 4. a4 {[%emt 0:02:59]} c6 {[%emt 0:00:08]} 5. Nc3 {[%emt 0:01:27]} b4 {[%emt 0:01:34]} 6. Na2 {[%emt 0:04:14]} Nf6 {[%emt 0:01:25]} 7. e5 {[%emt 0:01:23]} Nd5 {[%emt 0:00:07]} 8. Bxc4 {[%emt 0:01:00]} e6 {[%emt 0:00:10]} 9. Nf3 {[%emt 0:02:33]} a5 {[%emt 0:03:03] D10: Slav Defence: 3 cxd5 (without early Nf3) and 3 Nc3.} 10. Bg5 {[%emt 0:08:50]} Be7 {[%emt 0:00:35]} 11. Bxe7 {[%emt 0:02:17]} Qxe7 {[%emt 0:00:09] White is slightly better.} 12. Nc1 {[%emt 0:01:19] [#]} Nb6 $146 {[%emt 0:16:07]} ({Predecessor:} 12... Ba6 13. Bxa6 Nxa6 14. Nb3 c5 15. Nxa5 O-O 16. O-O Qc7 17. Nc4 cxd4 18. Nd6 d3 {1-0 (50) Sjugirov,S (2678)-Solak,D (2607) Jerusalem 2015}) 13. Be2 {[%emt 0:07:44]} (13. Bd3 $1 $14) 13... N8d7 {[%emt 0:05:37]} 14. Nb3 {[%emt 0:08:41]} c5 {[%emt 0:01:37]} 15. dxc5 {[%emt 0:11:27]} Nxc5 {[%emt 0:00:10]} 16. Nxc5 {[%emt 0:03:16]} Qxc5 {[%emt 0:00:09]} 17. Rc1 {[%emt 0:01:35]} Qd5 {[%emt 0:00:29]} 18. Bb5+ {[%emt 0:05:37]} Bd7 {[%emt 0:01:41]} 19. Qxd5 {[%emt 0:07:52]} Nxd5 {[%emt 0:01:52]} 20. Nd4 {[%emt 0:00:36]} Bxb5 {[%emt 0:16:49]} 21. Nxb5 {[%emt 0:00:34]} Ke7 {[%emt 0:10:05]} 22. g3 {[%emt 0:01:22]} Rhc8 {[%emt 0:04:08]} 23. Kd2 {[%emt 0:01:46]} g5 {[%emt 0:14:43]} (23... f6 $11) 24. Rhe1 {[%emt 0:08:21]} g4 {[%emt 0:02:44]} 25. Nd4 {[%emt 0:07:59]} (25. Nd6 $14 Rcb8 26. Rc6) 25... Nb6 $11 {[%emt 0:01:29]} 26. b3 {[%emt 0:01:30]} Rxc1 {[%emt 0:01:33]} (26... Rd8 {seems wilder.} 27. Re4 h5 28. Rc5 Kf8) 27. Kxc1 {[%emt 0:02:49][%mdl 4096] Endgame KRN-KRN} (27. Rxc1 $11 Rd8 28. Ke3) 27... Rc8+ $15 {[%emt 0:00:16]} 28. Kb2 {[%emt 0:00:16]} Nd7 {[%emt 0:00:23]} 29. f4 {[%emt 0:01:38]} (29. Re3 $1 $15) 29... gxf3 $1 $19 {[%emt 0:00:08]} 30. Nxf3 {[%emt 0:00:01]} Rc3 {[%emt 0:00:52]} 31. Nd4 {[%emt 0:01:55]} Nc5 {[%emt 0:01:14] [#] ...Nd3+ is the strong threat.} 32. Re2 {[%emt 0:01:26]} ({Not} 32. Nc6+ $2 Kd7 33. Nxb4 Rxb3+ 34. Kc2 Rxb4 $19) (32. Ka2 {keeps fighting.}) 32... Nd3+ {[%emt 0:00:07]} 33. Kb1 {[%emt 0:00:25]} Rc1+ {[%emt 0:00:26]} 34. Ka2 {[%emt 0:00:06]} Rc5 {[%emt 0:00:05] White must now prevent ...Nc1+.} 35. Rd2 {[%emt 0:02:24]} Nxe5 {[%emt 0:00:11]} 36. Nb5 {[%emt 0:01:00]} f5 {[%emt 0:00:59]} 37. h3 $2 {[%emt 0:00:34] [#]} (37. Kb1) 37... Nf3 {[%emt 0:00:26]} 38. Rf2 {[%emt 0:00:25]} Ng5 {[%emt 0:00:09]} 39. Rh2 {[%emt 0:00:27]} Ne4 {[%emt 0:00:07] Weighted Error Value: White=0.26 (precise) /Black=0.09 (flawless)} 0-1

[Event "Summer Prague Open-A 2022"]
[Site "Prague"]
[Date "2022.08.10"]
[Round "7.5"]
[White "Brejnik, Gustav"]
[Black "Sarkar, Justin"]
[Result "1/2-1/2"]
[ECO "A62"]
[WhiteElo "2292"]
[BlackElo "2346"]
[Annotator "TA"]
[PlyCount "48"]
[EventDate "2022.08.05"]
[EventType "swiss"]
[EventCountry "CZE"]
[SourceTitle "playchess.com"]
[Source "ChessBase"]
[SourceQuality "1"]
[TimeControl "40/5400+30:1800+30"]

{[%evp 23,48,0,50,34,35,33,48,56,54,54,56,49,72,67,139,143,142,78,31,30,32,31,31,0,45,0,64]} 1. d4 {[%emt 0:00:02]} Nf6 {[%emt 0:00:39]} 2. c4 {[%emt 0:00:07]} e6 {[%emt 0:00:32]} 3. g3 {[%emt 0:00:14]} c5 {[%emt 0:02:30]} 4. d5 {[%emt 0:00:16]} d6 {[%emt 0:01:14]} 5. Nc3 {[%emt 0:00:33]} exd5 {[%emt 0:00:06]} 6. cxd5 {[%emt 0:00:04]} g6 {[%emt 0:00:30]} 7. Bg2 {[%emt 0:00:04]} Bg7 {[%emt 0:00:11]} 8. Nf3 {[%emt 0:00:05]} O-O {[%emt 0:00:18]} 9. O-O {[%emt 0:00:04]} a6 {[%emt 0:02:26]} 10. a4 {[%emt 0:01:58]} Nbd7 {[%emt 0:00:19]} 11. Bf4 {[%emt 0:00:23]} Qe7 {[%emt 0:00:31]} 12. h3 {[%emt 0:04:47][%cal Bh2h3,Bh3h4][%mdl 32] 12.h3 has lost popularity.} h6 {[%emt 0:07:44]} (12... Nh5 $11) 13. Qc1 $14 {[%emt 0:09:15] A63: Modern Benoni: Fianchetto Variation: 9...Nbd7.} g5 {[%emt 0:04:44]} 14. Bd2 {[%emt 0:00:37]} Rb8 {[%emt 0:05:00]} 15. h4 {[%emt 0:10:23] White is slightly better.} g4 {[%emt 0:00:11]} 16. Ne1 {[%emt 0:00:04]} Kh7 {[%emt 0:01:44] [#]} 17. Qc2+ $146 {[%emt 0:20:02]} ({Predecessor:} 17. Nc2 Ne5 18. Ne3 Qd7 19. b4 cxb4 20. Qb1+ Kh8 21. Qxb4 Nh5 22. Nc4 f5 23. Nxd6 {1-0 (33) Bai,J (2444)-Smith,A (2148) London 2014}) 17... Kh8 {[%emt 0:00:14]} 18. Nd3 {[%emt 0:00:29]} b5 {[%emt 0:05:24]} ({Black should play} 18... Nh5 $14) 19. axb5 {[%emt 0:01:06]} axb5 {[%emt 0:00:08] [#]} 20. Ra7 {[%emt 0:00:35] White is more active.} ({White should try} 20. b4 $1) 20... b4 $16 {[%emt 0:02:01]} 21. Na4 {[%emt 0:12:10]} Rb7 {[%emt 0:07:09]} (21... Qxe2 $2 22. Re1 b3 23. Qc3 $18 (23. Rxe2 bxc2 24. Bf4 Nb6 $11)) 22. Ra8 {[%emt 0:03:29][%cal Od2b4] aiming for Bxb4!} Rb8 {[%emt 0:00:09]} (22... Qxe2 $2 23. Re1 b3 24. Qc3 $18 (24. Rxe2 bxc2 25. Bc3 c4 $15)) 23. Ra7 {[%emt 0:02:05]} Rb7 {[%emt 0:02:00]} (23... Qxe2 $2 24. Re1 b3 25. Qc3 $18 (25. Rxe2 bxc2 26. Bc3 Nb6 $15)) 24. Ra8 {[%emt 0:00:03][%cal Od2b4]} Rb8 $1 {[%emt 0:00:38] Weighted Error Value: White=0.12 (very precise) /Black=0.12 (very precise)} (24... Qxe2 $2 25. Re1 b3 26. Qc3 $18 (26. Rxe2 bxc2 27. Bc3 c4 $15)) 1/2-1/2